[Event "Titled Tuesday Blitz August 1 Early 2023"]
[White "Ardelean, George-Catalin"]
[Black "Swicarz, Maciej"]
[WhiteFideId "1207091"]
[BlackFideId "1113585"]
[WhiteElo "2706"]
[BlackElo "2427"]
[Result "1-0"]
[Round "2"]
[TimeControl "180+1"]
[Date "2023.08.01"]
[WhiteClock "0:00:57"]
[BlackClock "0:00:06"]
[Board "125"]

1. d4 {[%clk 0:03:00]}  Nf6 {[%clk 0:02:59]} 2. Bf4 {[%clk 0:02:59]}  d5 {[%clk 0:02:57]} 3. e3 {[%clk 0:02:59]}  c5 {[%clk 0:02:57]} 4. Nc3 {[%clk 0:02:59]}  a6 {[%clk 0:02:55]} 5. dxc5 {[%clk 0:02:58]}  Nc6 {[%clk 0:02:53]} 6. a3 {[%clk 0:02:59]}  e5 {[%clk 0:02:52]} 7. Bg5 {[%clk 0:02:59]}  Be6 {[%clk 0:02:52]} 8. b4 {[%clk 0:02:59]}  Be7 {[%clk 0:02:49]} 9. Nf3 {[%clk 0:02:59]}  O-O {[%clk 0:02:46]} 10. Be2 {[%clk 0:02:56]}  Qd7 {[%clk 0:02:43]} 11. Na4 {[%clk 0:02:53]}  Rad8 {[%clk 0:02:35]} 12. Nb6 {[%clk 0:02:52]}  Qc7 {[%clk 0:02:34]} 13. O-O {[%clk 0:02:38]}  Rfe8 {[%clk 0:02:28]} 14. Qc1 {[%clk 0:02:26]}  Ne4 {[%clk 0:02:22]} 15. Bxe7 {[%clk 0:02:24]}  Rxe7 {[%clk 0:02:22]} 16. c4 {[%clk 0:02:19]}  d4 {[%clk 0:02:21]} 17. exd4 {[%clk 0:02:19]}  Nxd4 {[%clk 0:02:14]} 18. Nxd4 {[%clk 0:02:16]}  exd4 {[%clk 0:02:14]} 19. Bd3 {[%clk 0:02:08]}  Nf6 {[%clk 0:01:59]} 20. Qg5 {[%clk 0:02:00]}  h6 {[%clk 0:01:54]} 21. Qg3 {[%clk 0:01:59]}  Qc6 {[%clk 0:01:34]} 22. Rfe1 {[%clk 0:01:57]}  Rde8 {[%clk 0:01:31]} 23. Re5 {[%clk 0:01:48]}  Nd7 {[%clk 0:01:22]} 24. Nxd7 {[%clk 0:01:46]}  Bxd7 {[%clk 0:00:57]} 25. Rae1 {[%clk 0:01:44]}  Rxe5 {[%clk 0:00:57]} 26. Rxe5 {[%clk 0:01:45]}  Re6 {[%clk 0:00:54]} 27. h3 {[%clk 0:01:41]}  f6 {[%clk 0:00:48]} 28. Rd5 {[%clk 0:01:32]}  Be8 {[%clk 0:00:40]} 29. Rxd4 {[%clk 0:01:27]}  Bf7 {[%clk 0:00:30]} 30. Rd6 {[%clk 0:01:21]}  Qe8 {[%clk 0:00:28]} 31. Kh2 {[%clk 0:01:18]}  g5 {[%clk 0:00:23]} 32. Rxe6 {[%clk 0:01:13]}  Bxe6 {[%clk 0:00:20]} 33. Qd6 {[%clk 0:01:11]}  Qf7 {[%clk 0:00:19]} 34. c6 {[%clk 0:01:05]}  bxc6 {[%clk 0:00:15]} 35. Qxc6 {[%clk 0:01:06]}  Kg7 {[%clk 0:00:13]} 36. c5 {[%clk 0:01:03]}  h5 {[%clk 0:00:13]} 37. Bxa6 {[%clk 0:00:58]}  h4 {[%clk 0:00:06]} 38. Qb7 {[%clk 0:00:57]} 1-0


[Site "https://www.chess.com"]

[Event "Titled Tuesday Blitz August 1 Early 2023"]
[White "FREDERICKtheMATE"]
[Black "Skatchkov, Pavel"]
[BlackFideId "4121848"]
[WhiteElo "2391"]
[BlackElo "2636"]
[Result "1-0"]
[Round "2"]
[TimeControl "180+1"]
[Date "2023.08.01"]
[WhiteClock "0:00:32"]
[BlackClock "0:00:01"]
[Board "127"]

1. Nf3 {[%clk 0:03:00]}  d5 {[%clk 0:02:33]} 2. g3 {[%clk 0:03:00]}  Nd7 {[%clk 0:02:32]} 3. d4 {[%clk 0:03:00]}  Nb6 {[%clk 0:02:32]} 4. Bg2 {[%clk 0:03:00]}  Nf6 {[%clk 0:02:33]} 5. O-O {[%clk 0:03:00]}  Bf5 {[%clk 0:02:32]} 6. b3 {[%clk 0:03:00]}  e6 {[%clk 0:02:31]} 7. Bb2 {[%clk 0:03:01]}  c6 {[%clk 0:02:31]} 8. Nbd2 {[%clk 0:03:01]}  h6 {[%clk 0:02:31]} 9. Ne5 {[%clk 0:03:00]}  Be7 {[%clk 0:02:30]} 10. c4 {[%clk 0:02:59]}  O-O {[%clk 0:02:30]} 11. c5 {[%clk 0:02:58]}  Nbd7 {[%clk 0:02:30]} 12. f4 {[%clk 0:02:55]}  Rc8 {[%clk 0:02:26]} 13. b4 {[%clk 0:02:54]}  a5 {[%clk 0:02:24]} 14. a3 {[%clk 0:02:52]}  b6 {[%clk 0:02:25]} 15. h3 {[%clk 0:02:46]}  Bh7 {[%clk 0:02:13]} 16. Qa4 {[%clk 0:02:44]}  Qc7 {[%clk 0:02:08]} 17. Bc3 {[%clk 0:02:42]}  Nxe5 {[%clk 0:01:50]} 18. fxe5 {[%clk 0:02:40]}  Nd7 {[%clk 0:01:51]} 19. e4 {[%clk 0:02:22]}  f6 {[%clk 0:01:47]} 20. exd5 {[%clk 0:02:22]}  cxd5 {[%clk 0:01:48]} 21. exf6 {[%clk 0:02:18]}  Nxf6 {[%clk 0:01:48]} 22. Rf3 {[%clk 0:02:12]}  Ne4 {[%clk 0:01:47]} 23. Nxe4 {[%clk 0:02:10]}  Bxe4 {[%clk 0:01:46]} 24. cxb6 {[%clk 0:01:57]}  Qxb6 {[%clk 0:01:45]} 25. Rxf8+ {[%clk 0:01:56]}  Bxf8 {[%clk 0:01:44]} 26. Qb3 {[%clk 0:01:51]}  axb4 {[%clk 0:01:40]} 27. axb4 {[%clk 0:01:50]}  Qc7 {[%clk 0:01:24]} 28. Be1 {[%clk 0:01:41]}  Qb6 {[%clk 0:01:15]} 29. Bc3 {[%clk 0:01:32]}  Bxg2 {[%clk 0:00:52]} 30. Kxg2 {[%clk 0:01:33]}  Rc4 {[%clk 0:00:50]} 31. b5 {[%clk 0:01:25]}  Qc7 {[%clk 0:00:37]} 32. b6 {[%clk 0:01:14]}  Qb8 {[%clk 0:00:32]} 33. b7 {[%clk 0:01:08]}  Rc7 {[%clk 0:00:30]} 34. Rb1 {[%clk 0:01:08]}  Bd6 {[%clk 0:00:26]} 35. Ba5 {[%clk 0:01:02]}  Rf7 {[%clk 0:00:24]} 36. g4 {[%clk 0:00:57]}  Re7 {[%clk 0:00:11]} 37. Qb6 {[%clk 0:00:54]}  Kh7 {[%clk 0:00:11]} 38. Qxd6 {[%clk 0:00:50]}  Qxd6 {[%clk 0:00:10]} 39. b8=Q {[%clk 0:00:49]}  Qa3 {[%clk 0:00:07]} 40. Qb4 {[%clk 0:00:45]}  Qd3 {[%clk 0:00:03]} 41. Qxe7 {[%clk 0:00:41]}  Qc2+ {[%clk 0:00:01]} 42. Kg3 {[%clk 0:00:35]}  Qd3+ {[%clk 0:00:02]} 43. Kh4 {[%clk 0:00:31]}  Qxb1 {[%clk 0:00:02]} 44. Qxe6 {[%clk 0:00:31]}  Qc2 {[%clk 0:00:01]} 45. Qf5+ {[%clk 0:00:30]}  Qxf5 {[%clk 0:00:02]} 46. gxf5 {[%clk 0:00:31]}  Kg8 {[%clk 0:00:02]} 47. Bc7 {[%clk 0:00:30]}  Kf7 {[%clk 0:00:03]} 48. Be5 {[%clk 0:00:30]}  g6 {[%clk 0:00:03]} 49. fxg6+ {[%clk 0:00:31]}  Kxg6 {[%clk 0:00:04]} 50. Kg4 {[%clk 0:00:32]}  h5+ {[%clk 0:00:05]} 51. Kf4 {[%clk 0:00:32]}  Kh6 {[%clk 0:00:01]} 52. Kf5 {[%clk 0:00:32]} 1-0


[Site "https://www.chess.com"]

[Event "Titled Tuesday Blitz August 1 Early 2023"]
[White "Komov, Roman"]
[Black "Tymrakiewicz, Rafal"]
[WhiteFideId "24175714"]
[BlackFideId "1108832"]
[WhiteElo "2631"]
[BlackElo "2372"]
[Result "0-1"]
[Round "2"]
[TimeControl "180+1"]
[Date "2023.08.01"]
[WhiteClock "0:00:00"]
[BlackClock "0:00:06"]
[Board "128"]

1. g3 {[%clk 0:03:00]}  d5 {[%clk 0:02:59]} 2. Bg2 {[%clk 0:03:01]}  g6 {[%clk 0:02:59]} 3. c4 {[%clk 0:03:02]}  d4 {[%clk 0:02:58]} 4. d3 {[%clk 0:03:00]}  Bg7 {[%clk 0:02:58]} 5. Nf3 {[%clk 0:03:01]}  e5 {[%clk 0:02:58]} 6. O-O {[%clk 0:03:02]}  Ne7 {[%clk 0:02:59]} 7. b4 {[%clk 0:03:02]}  O-O {[%clk 0:02:58]} 8. Nbd2 {[%clk 0:03:00]}  c5 {[%clk 0:02:56]} 9. bxc5 {[%clk 0:02:52]}  Nbc6 {[%clk 0:02:56]} 10. Nb3 {[%clk 0:02:52]}  h6 {[%clk 0:02:53]} 11. e3 {[%clk 0:02:48]}  Bg4 {[%clk 0:02:51]} 12. exd4 {[%clk 0:02:46]}  exd4 {[%clk 0:02:51]} 13. h3 {[%clk 0:02:43]}  Bf5 {[%clk 0:02:50]} 14. g4 {[%clk 0:02:38]}  Be6 {[%clk 0:02:48]} 15. Bf4 {[%clk 0:02:38]}  Re8 {[%clk 0:02:43]} 16. Re1 {[%clk 0:02:34]}  g5 {[%clk 0:02:35]} 17. Bg3 {[%clk 0:02:23]}  Ng6 {[%clk 0:02:35]} 18. Qd2 {[%clk 0:02:18]}  Qd7 {[%clk 0:02:35]} 19. Bd6 {[%clk 0:01:50]}  Kh7 {[%clk 0:02:18]} 20. Re2 {[%clk 0:01:35]}  f5 {[%clk 0:02:16]} 21. Nxg5+ {[%clk 0:00:38]}  hxg5 {[%clk 0:02:06]} 22. Qxg5 {[%clk 0:00:39]}  Bh6 {[%clk 0:02:01]} 23. Qh5 {[%clk 0:00:40]}  Bf7 {[%clk 0:01:44]} 24. g5 {[%clk 0:00:37]}  Rxe2 {[%clk 0:01:36]} 25. Qxe2 {[%clk 0:00:23]}  Bxg5 {[%clk 0:01:25]} 26. Qh5+ {[%clk 0:00:23]}  Bh6 {[%clk 0:01:24]} 27. Bxc6 {[%clk 0:00:24]}  bxc6 {[%clk 0:01:22]} 28. Nxd4 {[%clk 0:00:25]}  Nf4 {[%clk 0:00:45]} 29. Qf3 {[%clk 0:00:22]}  Rg8+ {[%clk 0:00:36]} 30. Kf1 {[%clk 0:00:09]}  Bh5 {[%clk 0:00:14]} 31. Qh1 {[%clk 0:00:09]}  Nxd3 {[%clk 0:00:12]} 32. Qxc6 {[%clk 0:00:07]}  Qg7 {[%clk 0:00:09]} 33. Qh1 {[%clk 0:00:05]}  Qxd4 {[%clk 0:00:07]} 34. Qb7+ {[%clk 0:00:00]}  Rg7 {[%clk 0:00:06]} 0-1


[Site "https://www.chess.com"]

[Event "Titled Tuesday Blitz August 1 Early 2023"]
[White "Adury, Anant"]
[Black "Wieczorek, Oskar"]
[WhiteFideId "30964687"]
[BlackFideId "1133950"]
[WhiteElo "2357"]
[BlackElo "2631"]
[Result "0-1"]
[Round "2"]
[TimeControl "180+1"]
[Date "2023.08.01"]
[WhiteClock "0:00:02"]
[BlackClock "0:01:15"]
[Board "129"]

1. Nf3 {[%clk 0:03:00]}  c5 {[%clk 0:02:59]} 2. g3 {[%clk 0:02:58]}  g6 {[%clk 0:03:00]} 3. Bg2 {[%clk 0:02:58]}  Bg7 {[%clk 0:03:00]} 4. O-O {[%clk 0:02:59]}  Nc6 {[%clk 0:03:01]} 5. c4 {[%clk 0:02:49]}  e5 {[%clk 0:03:00]} 6. Nc3 {[%clk 0:02:50]}  Nge7 {[%clk 0:03:00]} 7. d3 {[%clk 0:02:46]}  d6 {[%clk 0:03:00]} 8. Re1 {[%clk 0:02:46]}  O-O {[%clk 0:03:00]} 9. Nd2 {[%clk 0:02:46]}  Be6 {[%clk 0:02:50]} 10. Nf1 {[%clk 0:02:46]}  d5 {[%clk 0:02:45]} 11. cxd5 {[%clk 0:02:46]}  Nxd5 {[%clk 0:02:46]} 12. Ne4 {[%clk 0:02:27]}  b6 {[%clk 0:02:30]} 13. Ng5 {[%clk 0:02:24]}  Bc8 {[%clk 0:02:21]} 14. Ne3 {[%clk 0:02:22]}  Nde7 {[%clk 0:02:10]} 15. Nc4 {[%clk 0:02:08]}  Rb8 {[%clk 0:01:51]} 16. Ne4 {[%clk 0:02:00]}  Nf5 {[%clk 0:01:52]} 17. a4 {[%clk 0:01:53]}  Nb4 {[%clk 0:01:51]} 18. Bd2 {[%clk 0:01:50]}  Nd4 {[%clk 0:01:48]} 19. Bxb4 {[%clk 0:01:49]}  cxb4 {[%clk 0:01:48]} 20. e3 {[%clk 0:01:31]}  Ne6 {[%clk 0:01:48]} 21. Qe2 {[%clk 0:01:18]}  f5 {[%clk 0:01:40]} 22. Ned6 {[%clk 0:01:19]}  Ba6 {[%clk 0:01:34]} 23. Qd2 {[%clk 0:00:20]}  Nc5 {[%clk 0:01:30]} 24. Red1 {[%clk 0:00:17]}  Nb3 {[%clk 0:01:17]} 25. Qe2 {[%clk 0:00:07]}  Nxa1 {[%clk 0:01:16]} 26. Bd5+ {[%clk 0:00:03]}  Kh8 {[%clk 0:01:16]} 27. Nf7+ {[%clk 0:00:04]}  Rxf7 {[%clk 0:01:16]} 28. Bxf7 {[%clk 0:00:02]}  Nb3 {[%clk 0:01:15]} 0-1


[Site "https://www.chess.com"]

[Event "Titled Tuesday Blitz August 1 Early 2023"]
[White "Havlik, Jan"]
[Black "Haraguchi, Diego Sashaki"]
[WhiteFideId "319783"]
[BlackFideId "22729925"]
[WhiteElo "2610"]
[BlackElo "2341"]
[Result "1-0"]
[Round "2"]
[TimeControl "180+1"]
[Date "2023.08.01"]
[WhiteClock "0:02:59"]
[BlackClock "0:02:20"]
[Board "131"]

1. e4 {[%clk 0:03:00]}  e5 {[%clk 0:02:58]} 2. Bc4 {[%clk 0:03:00]}  Nf6 {[%clk 0:02:57]} 3. d4 {[%clk 0:03:01]}  exd4 {[%clk 0:02:57]} 4. Nf3 {[%clk 0:03:01]}  Nxe4 {[%clk 0:02:53]} 5. Qxd4 {[%clk 0:03:01]}  Nd6 {[%clk 0:02:48]} 6. O-O {[%clk 0:03:01]}  Nxc4 {[%clk 0:02:36]} 7. Re1+ {[%clk 0:03:00]}  Be7 {[%clk 0:02:37]} 8. Qxg7 {[%clk 0:03:00]}  Rf8 {[%clk 0:02:31]} 9. Bh6 {[%clk 0:03:01]}  d6 {[%clk 0:02:22]} 10. Qxf8+ {[%clk 0:02:59]}  Kd7 {[%clk 0:02:20]} 11. Qxf7 {[%clk 0:02:59]} 1-0


[Site "https://www.chess.com"]

[Event "Titled Tuesday Blitz August 1 Early 2023"]
[White "Gireman, Ja"]
[Black "Schut, Han"]
[WhiteFideId "5043794"]
[BlackFideId "1005561"]
[WhiteElo "2566"]
[BlackElo "2275"]
[Result "1-0"]
[Round "2"]
[TimeControl "180+1"]
[Date "2023.08.01"]
[WhiteClock "0:01:13"]
[BlackClock "0:00:03"]
[Board "133"]

1. e4 {[%clk 0:03:00]}  c5 {[%clk 0:02:57]} 2. Nf3 {[%clk 0:02:59]}  d6 {[%clk 0:02:57]} 3. d4 {[%clk 0:03:00]}  cxd4 {[%clk 0:02:58]} 4. Nxd4 {[%clk 0:03:01]}  Nf6 {[%clk 0:02:59]} 5. Nc3 {[%clk 0:03:01]}  a6 {[%clk 0:02:59]} 6. Rg1 {[%clk 0:03:01]}  e6 {[%clk 0:02:59]} 7. g4 {[%clk 0:03:01]}  h6 {[%clk 0:02:58]} 8. h4 {[%clk 0:03:00]}  d5 {[%clk 0:02:58]} 9. g5 {[%clk 0:02:55]}  Nxe4 {[%clk 0:02:52]} 10. g6 {[%clk 0:02:50]}  f5 {[%clk 0:02:44]} 11. Nxe4 {[%clk 0:02:47]}  dxe4 {[%clk 0:02:38]} 12. Bf4 {[%clk 0:02:47]}  Qxh4 {[%clk 0:02:20]} 13. Qd2 {[%clk 0:02:39]}  Qf6 {[%clk 0:01:42]} 14. O-O-O {[%clk 0:01:30]}  Bd7 {[%clk 0:01:01]} 15. Bc4 {[%clk 0:01:27]}  Nc6 {[%clk 0:00:59]} 16. Nb5 {[%clk 0:01:18]}  O-O-O {[%clk 0:00:38]} 17. Qa5 {[%clk 0:01:15]}  Nxa5 {[%clk 0:00:03]} 18. Na7# {[%clk 0:01:13]} 1-0


[Site "https://www.chess.com"]

[Event "Titled Tuesday Blitz August 1 Early 2023"]
[White "Martin, Lewis"]
[Black "AliNiknaddaf"]
[WhiteFideId "410551"]
[WhiteElo "2278"]
[BlackElo "2562"]
[Result "0-1"]
[Round "2"]
[TimeControl "180+1"]
[Date "2023.08.01"]
[WhiteClock "0:00:11"]
[BlackClock "0:01:08"]
[Board "134"]

1. e4 {[%clk 0:03:00]}  c5 {[%clk 0:02:57]} 2. Nf3 {[%clk 0:03:00]}  e6 {[%clk 0:02:57]} 3. d4 {[%clk 0:03:01]}  cxd4 {[%clk 0:02:58]} 4. Nxd4 {[%clk 0:03:02]}  Nc6 {[%clk 0:02:57]} 5. Nc3 {[%clk 0:03:02]}  Qc7 {[%clk 0:02:57]} 6. g3 {[%clk 0:03:00]}  d6 {[%clk 0:02:56]} 7. Bg2 {[%clk 0:03:00]}  Bd7 {[%clk 0:02:56]} 8. O-O {[%clk 0:02:58]}  a6 {[%clk 0:02:56]} 9. h3 {[%clk 0:02:54]}  Be7 {[%clk 0:02:55]} 10. Be3 {[%clk 0:02:54]}  Nf6 {[%clk 0:02:53]} 11. f4 {[%clk 0:02:52]}  O-O {[%clk 0:02:51]} 12. Nde2 {[%clk 0:02:52]}  b5 {[%clk 0:02:44]} 13. a3 {[%clk 0:02:50]}  Rac8 {[%clk 0:02:40]} 14. g4 {[%clk 0:02:49]}  Na5 {[%clk 0:02:38]} 15. g5 {[%clk 0:02:38]}  Ne8 {[%clk 0:02:37]} 16. Qd3 {[%clk 0:02:25]}  Nc4 {[%clk 0:02:36]} 17. Bc1 {[%clk 0:02:25]}  Bc6 {[%clk 0:02:25]} 18. b3 {[%clk 0:02:22]}  Nb6 {[%clk 0:02:24]} 19. f5 {[%clk 0:02:15]}  d5 {[%clk 0:02:10]} 20. exd5 {[%clk 0:02:05]}  Bc5+ {[%clk 0:02:03]} 21. Kh1 {[%clk 0:01:58]}  Nxd5 {[%clk 0:01:58]} 22. Nxd5 {[%clk 0:01:46]}  Bxd5 {[%clk 0:01:54]} 23. Bxd5 {[%clk 0:01:44]}  exd5 {[%clk 0:01:51]} 24. Bb2 {[%clk 0:01:34]}  Qb7 {[%clk 0:01:45]} 25. Rf3 {[%clk 0:01:21]}  Nd6 {[%clk 0:01:44]} 26. Raf1 {[%clk 0:01:12]}  Ne4 {[%clk 0:01:42]} 27. Nf4 {[%clk 0:00:58]}  d4 {[%clk 0:01:29]} 28. Kg2 {[%clk 0:00:36]}  Nxg5 {[%clk 0:01:27]} 29. Kg3 {[%clk 0:00:28]}  Rfe8 {[%clk 0:01:17]} 30. h4 {[%clk 0:00:21]}  Nxf3 {[%clk 0:01:15]} 31. Rxf3 {[%clk 0:00:22]}  Qe4 {[%clk 0:01:10]} 32. Qxe4 {[%clk 0:00:18]}  Rxe4 {[%clk 0:01:11]} 33. Nd5 {[%clk 0:00:17]}  Bd6+ {[%clk 0:01:08]} 34. Kf2 {[%clk 0:00:11]}  Rxc2+ {[%clk 0:01:08]} 0-1


[Site "https://www.chess.com"]

[Event "Titled Tuesday Blitz August 1 Early 2023"]
[White "Golubev, Mikhail"]
[Black "Putri, Regita Desyari"]
[WhiteFideId "14100983"]
[BlackFideId "7109083"]
[WhiteElo "2544"]
[BlackElo "2232"]
[Result "1-0"]
[Round "2"]
[TimeControl "180+1"]
[Date "2023.08.01"]
[WhiteClock "0:00:32"]
[BlackClock "0:00:07"]
[Board "136"]

1. e4 {[%clk 0:03:00]}  e5 {[%clk 0:02:59]} 2. Nf3 {[%clk 0:03:00]}  Nc6 {[%clk 0:02:59]} 3. Bc4 {[%clk 0:03:00]}  Bc5 {[%clk 0:02:59]} 4. c3 {[%clk 0:02:59]}  Nf6 {[%clk 0:02:58]} 5. d4 {[%clk 0:02:59]}  exd4 {[%clk 0:02:59]} 6. cxd4 {[%clk 0:03:00]}  Bb4+ {[%clk 0:02:59]} 7. Nbd2 {[%clk 0:03:01]}  d5 {[%clk 0:02:38]} 8. exd5 {[%clk 0:03:00]}  Nxd5 {[%clk 0:02:39]} 9. O-O {[%clk 0:03:01]}  O-O {[%clk 0:02:38]} 10. a3 {[%clk 0:03:01]}  Be7 {[%clk 0:02:31]} 11. Re1 {[%clk 0:03:00]}  Bg4 {[%clk 0:02:21]} 12. h3 {[%clk 0:02:55]}  Bh5 {[%clk 0:02:11]} 13. Ba2 {[%clk 0:02:55]}  Bf6 {[%clk 0:02:03]} 14. g4 {[%clk 0:02:40]}  Bg6 {[%clk 0:02:02]} 15. Ne4 {[%clk 0:02:39]}  Nb6 {[%clk 0:01:06]} 16. Nxf6+ {[%clk 0:02:02]}  Qxf6 {[%clk 0:01:05]} 17. d5 {[%clk 0:02:01]}  Nb8 {[%clk 0:00:42]} 18. Bg5 {[%clk 0:01:23]}  Qxb2 {[%clk 0:00:31]} 19. Re2 {[%clk 0:01:04]}  Qc3 {[%clk 0:00:14]} 20. Re3 {[%clk 0:00:58]}  Qc2 {[%clk 0:00:12]} 21. Qxc2 {[%clk 0:00:54]}  Bxc2 {[%clk 0:00:12]} 22. Rc1 {[%clk 0:00:54]}  Bg6 {[%clk 0:00:10]} 23. Rxc7 {[%clk 0:00:52]}  Na6 {[%clk 0:00:11]} 24. Rxb7 {[%clk 0:00:48]}  Nc5 {[%clk 0:00:12]} 25. Rc7 {[%clk 0:00:47]}  Na6 {[%clk 0:00:12]} 26. Rcc3 {[%clk 0:00:41]}  h6 {[%clk 0:00:13]} 27. Be7 {[%clk 0:00:40]}  Rfc8 {[%clk 0:00:12]} 28. d6 {[%clk 0:00:37]}  Rxc3 {[%clk 0:00:12]} 29. Rxc3 {[%clk 0:00:37]}  Re8 {[%clk 0:00:12]} 30. Ne5 {[%clk 0:00:35]}  Be4 {[%clk 0:00:07]} 31. Bxf7+ {[%clk 0:00:32]} 1-0


[Site "https://www.chess.com"]

[Event "Titled Tuesday Blitz August 1 Early 2023"]
[White "ATM622"]
[Black "UgarteCesar"]
[WhiteElo "2541"]
[BlackElo "2212"]
[Result "1-0"]
[Round "2"]
[TimeControl "180+1"]
[Date "2023.08.01"]
[WhiteClock "0:00:34"]
[BlackClock "0:00:25"]
[Board "137"]

1. d4 {[%clk 0:03:00]}  d5 {[%clk 0:02:59]} 2. c4 {[%clk 0:03:00]}  e6 {[%clk 0:02:59]} 3. Nf3 {[%clk 0:02:59]}  h6 {[%clk 0:02:57]} 4. g3 {[%clk 0:02:59]}  Nf6 {[%clk 0:02:57]} 5. Bg2 {[%clk 0:02:59]}  Nbd7 {[%clk 0:02:58]} 6. O-O {[%clk 0:02:58]}  dxc4 {[%clk 0:02:58]} 7. a4 {[%clk 0:02:53]}  Bb4 {[%clk 0:02:56]} 8. Bd2 {[%clk 0:02:50]}  Bxd2 {[%clk 0:02:55]} 9. Nbxd2 {[%clk 0:02:51]}  O-O {[%clk 0:02:55]} 10. Nxc4 {[%clk 0:02:51]}  c5 {[%clk 0:02:55]} 11. dxc5 {[%clk 0:02:45]}  Nxc5 {[%clk 0:02:54]} 12. b4 {[%clk 0:02:45]}  Nce4 {[%clk 0:02:41]} 13. Qc2 {[%clk 0:02:37]}  Bd7 {[%clk 0:02:33]} 14. Rfd1 {[%clk 0:02:28]}  Qe7 {[%clk 0:02:33]} 15. Nfe5 {[%clk 0:02:26]}  Ng5 {[%clk 0:01:55]} 16. h4 {[%clk 0:02:18]}  Ngh7 {[%clk 0:01:54]} 17. Nd6 {[%clk 0:02:10]}  Rab8 {[%clk 0:01:43]} 18. Bxb7 {[%clk 0:01:55]}  Rfd8 {[%clk 0:01:31]} 19. b5 {[%clk 0:01:42]}  Bxb5 {[%clk 0:01:00]} 20. axb5 {[%clk 0:01:31]}  Rxd6 {[%clk 0:01:00]} 21. Ba6 {[%clk 0:00:55]}  Rbd8 {[%clk 0:00:48]} 22. Nc6 {[%clk 0:00:41]}  Rxd1+ {[%clk 0:00:47]} 23. Rxd1 {[%clk 0:00:42]}  Rxd1+ {[%clk 0:00:47]} 24. Qxd1 {[%clk 0:00:43]}  Qc5 {[%clk 0:00:45]} 25. Qd8+ {[%clk 0:00:40]}  Nf8 {[%clk 0:00:45]} 26. Ne7+ {[%clk 0:00:34]}  Kh7 {[%clk 0:00:44]} 27. Qxf8 {[%clk 0:00:34]}  g5 {[%clk 0:00:25]} 28. Qxf7+ {[%clk 0:00:34]} 1-0


[Site "https://www.chess.com"]

[Event "Titled Tuesday Blitz August 1 Early 2023"]
[White "Molina, Roberto Junio Brito"]
[Black "Federzoni, Enzo"]
[WhiteFideId "2109450"]
[BlackFideId "2173301"]
[WhiteElo "2855"]
[BlackElo "2405"]
[Result "1-0"]
[Round "2"]
[TimeControl "180+1"]
[Date "2023.08.01"]
[WhiteClock "0:00:55"]
[BlackClock "0:00:01"]
[Board "141"]

1. e4 {[%clk 0:03:00]}  e5 {[%clk 0:02:59]} 2. Nf3 {[%clk 0:03:00]}  Nc6 {[%clk 0:02:59]} 3. Bb5 {[%clk 0:03:00]}  a6 {[%clk 0:02:59]} 4. Ba4 {[%clk 0:03:00]}  Nf6 {[%clk 0:02:59]} 5. O-O {[%clk 0:02:59]}  b5 {[%clk 0:02:59]} 6. Bb3 {[%clk 0:02:59]}  Bc5 {[%clk 0:02:59]} 7. c3 {[%clk 0:02:59]}  d6 {[%clk 0:02:59]} 8. d4 {[%clk 0:02:56]}  Bb6 {[%clk 0:02:59]} 9. h3 {[%clk 0:02:55]}  O-O {[%clk 0:02:53]} 10. a4 {[%clk 0:02:48]}  Rb8 {[%clk 0:02:52]} 11. axb5 {[%clk 0:02:47]}  axb5 {[%clk 0:02:53]} 12. Na3 {[%clk 0:02:45]}  b4 {[%clk 0:02:23]} 13. Nc4 {[%clk 0:02:44]}  exd4 {[%clk 0:01:45]} 14. cxd4 {[%clk 0:02:40]}  Nxe4 {[%clk 0:01:44]} 15. Nxb6 {[%clk 0:02:35]}  Rxb6 {[%clk 0:01:45]} 16. d5 {[%clk 0:02:33]}  Ne7 {[%clk 0:01:39]} 17. Be3 {[%clk 0:02:28]}  Rb8 {[%clk 0:01:39]} 18. Nd4 {[%clk 0:02:22]}  Nc5 {[%clk 0:01:27]} 19. Bc4 {[%clk 0:02:21]}  Bd7 {[%clk 0:01:24]} 20. Re1 {[%clk 0:02:18]}  Nf5 {[%clk 0:01:15]} 21. Nxf5 {[%clk 0:02:14]}  Bxf5 {[%clk 0:01:16]} 22. Bd4 {[%clk 0:01:55]}  Ra8 {[%clk 0:01:16]} 23. Rc1 {[%clk 0:01:53]}  Re8 {[%clk 0:01:10]} 24. Qd2 {[%clk 0:01:52]}  Qd7 {[%clk 0:01:03]} 25. Qxb4 {[%clk 0:01:47]}  Nd3 {[%clk 0:00:51]} 26. Bxd3 {[%clk 0:01:46]}  Bxd3 {[%clk 0:00:52]} 27. Rxe8+ {[%clk 0:01:43]}  Rxe8 {[%clk 0:00:48]} 28. Qc3 {[%clk 0:01:39]}  Be4 {[%clk 0:00:48]} 29. Bxg7 {[%clk 0:01:36]}  Bxd5 {[%clk 0:00:48]} 30. Qg3 {[%clk 0:01:25]}  Qf5 {[%clk 0:00:44]} 31. Rxc7 {[%clk 0:01:23]}  Qg6 {[%clk 0:00:26]} 32. Qxg6 {[%clk 0:01:12]}  hxg6 {[%clk 0:00:27]} 33. Bd4 {[%clk 0:01:08]}  Bb3 {[%clk 0:00:26]} 34. Kh2 {[%clk 0:01:05]}  d5 {[%clk 0:00:22]} 35. Rb7 {[%clk 0:00:59]}  Bc2 {[%clk 0:00:20]} 36. Rb5 {[%clk 0:00:57]}  Be4 {[%clk 0:00:11]} 37. f3 {[%clk 0:00:57]}  Bd3 {[%clk 0:00:12]} 38. Rxd5 {[%clk 0:00:57]}  Re2 {[%clk 0:00:01]} 39. Rd8+ {[%clk 0:00:55]} 1-0


[Site "https://www.chess.com"]